Workbook

Sheet 2024年8月
A1: 陆 丰 市 2024 年 8 月 财 政 预 算 收 入 完 成 情 况 表
A2: 2024-08-31 | L2: 单位：万元
A3: 收 入 项 目 | B3: 年 度 | C3: 累 计 | D3: 占 年 | E3: 上 年 | F3: 比上年 | G3: 比上年 | H3: 本 月 | I3: 上 年 | J3: 比上年 | K3: 比上年 | L3: 备 注
B4: 预 算 | C4: 完 成 | D4: 预 算 | E4: 同 期 | F4: 同期增 | G4: 同期增 | H4: 完 成 | I4: 同 月 | J4: 同月增 | K4: 同月增
B5: 数 | C5: 数 | D5: % | E5: 完 成 | F5: 减额 | G5: (减)% | H5: 数 | I5: 完 成 | J5: 减额 | K5: (减)%
A6: （一）税收收入 | B6: =SUM(B7:B20) -> 70,000 | C6: =SUM(C7:C20) -> 30,664 | D6: =C6/B6*100 -> 43.8 | E6: =SUM(E7:E20) -> 37,796 | F6: =C6-E6 -> -7,132 | G6: =F6/E6*100 -> -18.9 | H6: =H7+H8+H9+H10+H11+H12+H13+H14+H15+H16+H17+H18+H19+H20 -> 2,668 | I6: =SUM(I7:I20) -> 2,812 | J6: =H6-I6 -> -144 | K6: =J6/I6*100 -> -5.1
A7: 1、增值税 | B7: 18,300 | C7: 9,723 | D7: 53.1 | E7: 9,958 | F7: -235 | G7: -2.4 | H7: =C7-'[1]2024年7月'!C7 -> 998 | I7: =E7-'[1]2024年7月'!E7 -> 674 | J7: 324 | K7: 48.1
A8: 2、企业所得税 | B8: 5,500 | C8: 4,538 | D8: 82.5 | E8: 2,578 | F8: 1,960 | G8: 76.0 | H8: =C8-'[1]2024年7月'!C8 -> 81 | I8: =E8-'[1]2024年7月'!E8 -> 7 | J8: 74 | K8: 1,057.1
A9: 3、个人所得税 | B9: 1,400 | C9: 737 | D9: 52.6 | E9: 812 | F9: -75 | G9: -9.2 | H9: =C9-'[1]2024年7月'!C9 -> 83 | I9: =E9-'[1]2024年7月'!E9 -> 101 | J9: -18 | K9: -17.8
A10: 4、资源税 | B10: 1,500 | C10: 56 | D10: 3.7 | E10: 12 | F10: 44 | G10: 366.7 | H10: =C10-'[1]2024年7月'!C10 -> 3 | I10: =E10-'[1]2024年7月'!E10 -> 0 | J10: 3
A11: 5、城市维护建设税 | B11: 5,900 | C11: 3,234 | D11: 54.8 | E11: 3,313 | F11: -79 | G11: -2.4 | H11: =C11-'[1]2024年7月'!C11 -> 387 | I11: =E11-'[1]2024年7月'!E11 -> 354 | J11: 33 | K11: =J11/I11*100 -> 9.3
A12: 6、房产税 | B12: 4,150 | C12: 710 | D12: 17.1 | E12: 531 | F12: 179 | G12: 33.7 | H12: =C12-'[1]2024年7月'!C12 -> 68 | I12: =E12-'[1]2024年7月'!E12 -> 22 | J12: 46 | K12: 209.1
A13: 7、印花税 | B13: 1,850 | C13: 854 | D13: 46.2 | E13: 1,083 | F13: -229 | G13: -21.1 | H13: =C13-'[1]2024年7月'!C13 -> 40 | I13: =E13-'[1]2024年7月'!E13 -> 62 | J13: -22 | K13: -35.5
A14: 8、城镇土地使用税 | B14: 2,550 | C14: 331 | D14: 13.0 | E14: 532 | F14: -201 | G14: -37.8 | H14: =C14-'[1]2024年7月'!C14 -> 32 | I14: =E14-'[1]2024年7月'!E14 -> 10 | J14: 22 | K14: 220.0
A15: 9、土地增值税 | B15: 5,000 | C15: 3,183 | D15: 63.7 | E15: 2,213 | F15: 970 | G15: 43.8 | H15: =C15-'[1]2024年7月'!C15 -> 234 | I15: =E15-'[1]2024年7月'!E15 -> 196 | J15: 38 | K15: 19.4
A16: 10、车船使用税 | B16: 2,000 | C16: 1,247 | D16: 62.4 | E16: 1,159 | F16: 88 | G16: 7.6 | H16: =C16-'[1]2024年7月'!C16 -> 148 | I16: =E16-'[1]2024年7月'!E16 -> 131 | J16: 17 | K16: 13.0
A17: 11、环保税 | B17: 350 | C17: 223 | D17: 63.7 | E17: 172 | F17: 51 | G17: 29.7 | H17: =C17-'[1]2024年7月'!C17 -> 0 | I17: =E17-'[1]2024年7月'!E17 -> 7 | J17: -7 | K17: -100.0
A18: 12、耕地占用税 | B18: 12,000 | C18: 2,504 | D18: 20.9 | E18: 10,681 | F18: -8,177 | G18: -76.6 | H18: =C18-'[1]2024年7月'!C18 -> 237 | I18: =E18-'[1]2024年7月'!E18 -> 652 | J18: -415 | K18: -63.7
A19: 13、契 税 | B19: 9,500 | C19: 3,324 | D19: 35.0 | E19: 4,752 | F19: -1,428 | G19: -30.1 | H19: =C19-'[1]2024年7月'!C19 -> 357 | I19: =E19-'[1]2024年7月'!E19 -> 596 | J19: -239 | K19: -40.1
A20: 14、其他税收收入 | B20: 0 | C20: 0 | E20: 0 | F20: 0 | H20: =C20-'[1]2024年7月'!C20 -> 0 | I20: =E20-'[1]2024年7月'!E20 -> 0 | J20: 0
A21: （二）非税收入 | B21: =SUM(B22:B29) -> 75,800 | C21: =SUM(C22:C29) -> 62,437 | D21: =C21/B21*100 -> 82.4 | E21: =E22+E23+E24+E25+E26+E27+E28+E29 -> 52,418 | F21: 10,019 | G21: =F21/E21*100 -> 19.1 | H21: 2,718 | I21: 6,791 | J21: -4,073 | K21: =J21/I21*100 -> -60.0
A22: 1、专项收入 | B22: 4,400 | C22: 11,065 | D22: 251.5 | E22: 2,395 | F22: 8,670 | G22: 362.0 | H22: =C22-'[1]2024年7月'!C22 -> 261 | I22: =E22-'[1]2024年7月'!E22 -> 264 | J22: -3 | K22: -1.1
A23: 2、行政事业性收费收入 | B23: 8,900 | C23: 19,683 | D23: 221.2 | E23: 14,865 | F23: 4,818 | G23: 32.4 | H23: =C23-'[1]2024年7月'!C23 -> -3 | I23: =E23-'[1]2024年7月'!E23 -> 1,545 | J23: -1,548 | K23: -100.2
A24: 3、罚没收入 | B24: 5,500 | C24: 13,470 | D24: 244.9 | E24: 6,542 | F24: 6,928 | G24: 105.9 | H24: =C24-'[1]2024年7月'!C24 -> 2,083 | I24: =E24-'[1]2024年7月'!E24 -> 0 | J24: 2,083
A25: 4、国有资源（资产）有偿使用收入 | B25: 49,800 | C25: 3,077 | D25: 6.2 | E25: 19,424 | F25: -16,347 | G25: -84.2 | H25: =C25-'[1]2024年7月'!C25 -> 49 | I25: =E25-'[1]2024年7月'!E25 -> 4,867 | J25: -4,818 | K25: =J25/I25*100 -> -99.0
A26: 5、政府住房基金收入 | B26: 300 | C26: 342 | D26: 114.0 | E26: 319 | F26: 23 | G26: 7.2 | H26: =C26-'[1]2024年7月'!C26 -> 40 | I26: =E26-'[1]2024年7月'!E26 -> 115 | J26: -75 | K26: -65.2
A27: 6、捐赠收入 | B27: 1,000 | C27: 10,632 | D27: 1063.2 | E27: 6,533 | F27: 4,099 | G27: 62.7 | H27: =C27-'[1]2024年7月'!C27 -> 5 | I27: =E27-'[1]2024年7月'!E27 -> 0 | J27: 5
A28: 7、其他收入 | B28: 5,900 | C28: 4,168 | D28: 70.6 | E28: 2,335 | F28: 1,833 | G28: 78.5 | H28: =C28-'[1]2024年7月'!C28 -> 283 | I28: =E28-'[1]2024年7月'!E28 -> 0 | J28: 283
A29: 8、国有资本经营收入 | E29: 5 | F29: -5 | G29: -100.0 | H29: =C29-'[1]2024年7月'!C29 -> 0 | I29: =E29-'[1]2024年7月'!E29 -> 0 | J29: 0
A30: 一、一般公共预算收入 | B30: =B6+B21 -> 145,800 | C30: =C6+C21 -> 93,101 | D30: =C30/B30*100 -> 63.9 | E30: 90,214 | F30: 2,887 | G30: 3.2 | H30: 5,386 | I30: 9,603 | J30: -4,217 | K30: -43.9
A31: 二、政府性基金预算收入小计 | B31: 158,877 | C31: 43,457 | D31: 27.4 | E31: 30,426 | F31: 13,031 | G31: 42.8 | H31: =C31-'[1]2024年7月'!C31 -> 3,300 | I31: =E31-'[1]2024年7月'!E31 -> 5,351 | J31: -2,051 | K31: -38.3
A32: 其中：国有土地使用权出让收入 | B32: 152,307 | C32: 35,702 | D32: 23.4 | E32: 26,362 | F32: 9,340 | G32: 35.4 | H32: =C32-'[1]2024年7月'!C32 -> 368 | I32: =E32-'[1]2024年7月'!E32 -> 4,378 | J32: -4,010 | K32: -91.6
A33: 三、国有资本经营收入小计 | B33: 60,600 | C33: 500 | D33: 0.8 | E33: 300 | F33: 200 | G33: 66.7 | H33: =C33-'[1]2024年7月'!C33 -> 0 | I33: =E33-'[1]2024年7月'!E33 -> 0 | J33: 0
A34: 收入合计 | B34: =B30+B31+B33 -> 365,277 | C34: =C30+C31+C33 -> 137,058 | D34: 37.5 | E34: 120,940 | F34: 16,118 | G34: 13.3 | H34: 8,686 | I34: 14,954 | J34: -6,268 | K34: =J34/I34*100 -> -41.9
L35: 陆丰市财政局国库股
